[Event "Titled Tuesday Blitz April 18 Late 2023"]
[White "Rodshtein, Maxim"]
[Black "Moussard, Jules"]
[WhiteFideId "2806851"]
[BlackFideId "642908"]
[WhiteElo "2555"]
[BlackElo "2610"]
[Result "0-1"]
[Round "07"]
[TimeControl "180+2"]
[Date "2023.04.18"]
[WhiteClock "0:00:37"]
[BlackClock "0:00:59"]

1. b3 {[%clk 0:02:57]}  e5 {[%clk 0:02:59]} 2. Bb2 {[%clk 0:02:57]}  Nc6 {[%clk 0:03:00]} 3. e3 {[%clk 0:02:58]}  g6 {[%clk 0:03:00]} 4. Nf3 {[%clk 0:02:57]}  Bg7 {[%clk 0:03:00]} 5. c4 {[%clk 0:02:58]}  Nge7 {[%clk 0:03:01]} 6. d4 {[%clk 0:02:58]}  e4 {[%clk 0:02:58]} 7. Nfd2 {[%clk 0:02:58]}  f5 {[%clk 0:02:58]} 8. Nc3 {[%clk 0:02:58]}  d5 {[%clk 0:02:57]} 9. h4 {[%clk 0:02:55]}  Be6 {[%clk 0:02:54]} 10. g3 {[%clk 0:02:54]}  O-O {[%clk 0:02:51]} 11. a3 {[%clk 0:02:53]}  h6 {[%clk 0:02:39]} 12. Qc2 {[%clk 0:02:52]}  a5 {[%clk 0:02:38]} 13. O-O-O {[%clk 0:02:51]}  Qe8 {[%clk 0:02:36]} 14. Kb1 {[%clk 0:02:50]}  Qf7 {[%clk 0:02:36]} 15. Be2 {[%clk 0:02:27]}  Nb8 {[%clk 0:02:30]} 16. cxd5 {[%clk 0:02:19]}  Nxd5 {[%clk 0:02:30]} 17. Nc4 {[%clk 0:02:17]}  Nd7 {[%clk 0:02:29]} 18. Nxd5 {[%clk 0:01:58]}  Bxd5 {[%clk 0:02:29]} 19. a4 {[%clk 0:01:58]}  c6 {[%clk 0:02:25]} 20. Ba3 {[%clk 0:01:57]}  b5 {[%clk 0:02:12]} 21. axb5 {[%clk 0:01:42]}  cxb5 {[%clk 0:02:09]} 22. Nd6 {[%clk 0:01:42]}  Qe6 {[%clk 0:02:02]} 23. Bxb5 {[%clk 0:01:42]}  Rfb8 {[%clk 0:01:52]} 24. Qc7 {[%clk 0:01:26]}  Nf6 {[%clk 0:01:35]} 25. Bc4 {[%clk 0:01:02]}  Bf8 {[%clk 0:01:18]} 26. Rc1 {[%clk 0:00:48]}  Bxc4 {[%clk 0:01:08]} 27. Qxc4 {[%clk 0:00:48]}  Rxb3+ {[%clk 0:01:08]} 28. Ka2 {[%clk 0:00:48]}  Rxa3+ {[%clk 0:01:08]} 29. Kxa3 {[%clk 0:00:48]}  Bxd6+ {[%clk 0:01:09]} 30. Ka4 {[%clk 0:00:45]}  Nd5 {[%clk 0:01:01]} 31. Qc6 {[%clk 0:00:45]}  Rb8 {[%clk 0:01:00]} 32. Rb1 {[%clk 0:00:43]}  Nc3+ {[%clk 0:00:58]} 33. Qxc3 {[%clk 0:00:36]}  Qa2+ {[%clk 0:00:58]} 34. Qa3 {[%clk 0:00:37]}  Qxa3# {[%clk 0:00:59]} 0-1


[Site "https://www.chess.com"]

[Event "Titled Tuesday Blitz April 18 Late 2023"]
[White "Terry, Renato"]
[Black "Beerdsen, Thomas"]
[WhiteFideId "3803457"]
[BlackFideId "1030108"]
[WhiteElo "2575"]
[BlackElo "2547"]
[Result "1-0"]
[Round "07"]
[TimeControl "180+2"]
[Date "2023.04.18"]
[WhiteClock "0:00:04"]
[BlackClock "0:00:33"]

1. Nf3 {[%clk 0:02:58]}  h6 {[%clk 0:03:00]} 2. e4 {[%clk 0:02:57]}  g5 {[%clk 0:03:01]} 3. d4 {[%clk 0:02:57]}  g4 {[%clk 0:03:01]} 4. Nh4 {[%clk 0:02:50]}  h5 {[%clk 0:02:59]} 5. h3 {[%clk 0:02:49]}  d5 {[%clk 0:02:58]} 6. e5 {[%clk 0:02:47]}  c5 {[%clk 0:02:58]} 7. dxc5 {[%clk 0:02:44]}  Nc6 {[%clk 0:02:57]} 8. Bf4 {[%clk 0:02:27]}  Bh6 {[%clk 0:02:54]} 9. Bxh6 {[%clk 0:02:19]}  Nxh6 {[%clk 0:02:55]} 10. Bb5 {[%clk 0:02:14]}  Be6 {[%clk 0:02:46]} 11. c3 {[%clk 0:02:04]}  Qc7 {[%clk 0:02:42]} 12. Qd4 {[%clk 0:02:03]}  Rg8 {[%clk 0:02:38]} 13. Nd2 {[%clk 0:01:59]}  Qa5 {[%clk 0:02:27]} 14. a4 {[%clk 0:01:52]}  gxh3 {[%clk 0:02:26]} 15. gxh3 {[%clk 0:01:51]}  Qc7 {[%clk 0:02:16]} 16. Qf4 {[%clk 0:01:50]}  Rh8 {[%clk 0:02:07]} 17. Ndf3 {[%clk 0:01:48]}  O-O-O {[%clk 0:01:58]} 18. O-O-O {[%clk 0:01:22]}  Na5 {[%clk 0:01:39]} 19. b4 {[%clk 0:01:21]}  Nc4 {[%clk 0:01:40]} 20. Bxc4 {[%clk 0:01:14]}  dxc4 {[%clk 0:01:40]} 21. Rxd8+ {[%clk 0:01:12]}  Qxd8 {[%clk 0:01:41]} 22. Nd4 {[%clk 0:01:12]}  Bd5 {[%clk 0:01:39]} 23. Rd1 {[%clk 0:01:10]}  e6 {[%clk 0:01:40]} 24. Nb5 {[%clk 0:01:08]}  Kb8 {[%clk 0:01:38]} 25. Nd6 {[%clk 0:01:08]}  Qd7 {[%clk 0:01:29]} 26. Qf6 {[%clk 0:00:33]}  Rd8 {[%clk 0:01:26]} 27. b5 {[%clk 0:00:25]}  Ng8 {[%clk 0:01:25]} 28. Qxf7 {[%clk 0:00:25]}  Ne7 {[%clk 0:01:26]} 29. Ng6 {[%clk 0:00:22]}  Nxg6 {[%clk 0:01:26]} 30. Qxg6 {[%clk 0:00:23]}  a6 {[%clk 0:01:25]} 31. Qg5 {[%clk 0:00:20]}  axb5 {[%clk 0:01:21]} 32. axb5 {[%clk 0:00:21]}  Rf8 {[%clk 0:01:21]} 33. Qe3 {[%clk 0:00:19]}  Qc7 {[%clk 0:01:20]} 34. Kb2 {[%clk 0:00:20]}  Qg7 {[%clk 0:01:17]} 35. c6 {[%clk 0:00:15]}  Qg2 {[%clk 0:01:18]} 36. Rd2 {[%clk 0:00:15]}  Kc7 {[%clk 0:01:08]} 37. Qa7 {[%clk 0:00:13]}  Bxc6 {[%clk 0:00:57]} 38. bxc6 {[%clk 0:00:02]}  Qxc6 {[%clk 0:00:58]} 39. Qa5+ {[%clk 0:00:02]}  Kb8 {[%clk 0:00:58]} 40. Qb5 {[%clk 0:00:02]}  Qc7 {[%clk 0:00:53]} 41. Nxc4 {[%clk 0:00:02]}  Rf4 {[%clk 0:00:52]} 42. Kb3 {[%clk 0:00:02]}  Rf7 {[%clk 0:00:51]} 43. Rd6 {[%clk 0:00:02]}  h4 {[%clk 0:00:50]} 44. Rb6 {[%clk 0:00:02]}  Rf3 {[%clk 0:00:43]} 45. Qe8+ {[%clk 0:00:02]}  Ka7 {[%clk 0:00:43]} 46. Qa4+ {[%clk 0:00:03]}  Kb8 {[%clk 0:00:44]} 47. Rxe6 {[%clk 0:00:04]}  Rf8 {[%clk 0:00:37]} 48. Re8+ {[%clk 0:00:04]}  Rxe8 {[%clk 0:00:38]} 49. Qxe8+ {[%clk 0:00:05]}  Ka7 {[%clk 0:00:36]} 50. Qa4+ {[%clk 0:00:05]}  Kb8 {[%clk 0:00:36]} 51. Qb4 {[%clk 0:00:06]}  Qf7 {[%clk 0:00:36]} 52. Qd6+ {[%clk 0:00:06]}  Ka8 {[%clk 0:00:37]} 53. e6 {[%clk 0:00:06]}  Qe8 {[%clk 0:00:36]} 54. Qd7 {[%clk 0:00:04]}  Qg6 {[%clk 0:00:32]} 55. e7 {[%clk 0:00:05]}  Qb1+ {[%clk 0:00:32]} 56. Nb2 {[%clk 0:00:05]}  Qd1+ {[%clk 0:00:33]} 57. Nxd1 {[%clk 0:00:04]} 1-0


[Site "https://www.chess.com"]

[Event "Titled Tuesday Blitz April 18 Late 2023"]
[White "Zhigalko_Sergei"]
[Black "Averjanov, Alexey"]
[BlackFideId "14109867"]
[WhiteElo "2916"]
[BlackElo "2650"]
[Result "1/2-1/2"]
[Round "07"]
[TimeControl "180+2"]
[Date "2023.04.18"]
[WhiteClock "0:00:02"]
[BlackClock "0:00:07"]

1. e4 {[%clk 0:03:00]}  c6 {[%clk 0:02:57]} 2. d4 {[%clk 0:03:01]}  d5 {[%clk 0:02:58]} 3. e5 {[%clk 0:03:01]}  Bf5 {[%clk 0:02:56]} 4. Nf3 {[%clk 0:03:02]}  e6 {[%clk 0:02:56]} 5. Be2 {[%clk 0:03:02]}  Nd7 {[%clk 0:02:55]} 6. O-O {[%clk 0:03:03]}  a5 {[%clk 0:02:54]} 7. a4 {[%clk 0:03:02]}  f6 {[%clk 0:02:53]} 8. Bf4 {[%clk 0:02:43]}  fxe5 {[%clk 0:02:50]} 9. Nxe5 {[%clk 0:02:44]}  Bd6 {[%clk 0:02:44]} 10. Nf7 {[%clk 0:02:14]}  Kxf7 {[%clk 0:02:41]} 11. Bxd6 {[%clk 0:02:15]}  Ngf6 {[%clk 0:02:42]} 12. Nd2 {[%clk 0:02:08]}  Re8 {[%clk 0:02:38]} 13. Nf3 {[%clk 0:02:03]}  Kg8 {[%clk 0:02:35]} 14. c3 {[%clk 0:02:00]}  Ne4 {[%clk 0:02:28]} 15. Bf4 {[%clk 0:01:58]}  Qf6 {[%clk 0:02:22]} 16. Qc1 {[%clk 0:01:51]}  h6 {[%clk 0:02:17]} 17. h3 {[%clk 0:01:49]}  Rf8 {[%clk 0:02:07]} 18. Bh2 {[%clk 0:01:48]}  Rae8 {[%clk 0:02:06]} 19. Qe3 {[%clk 0:01:48]}  Kh7 {[%clk 0:02:01]} 20. Rae1 {[%clk 0:01:41]}  b6 {[%clk 0:01:52]} 21. Ne5 {[%clk 0:01:22]}  Nxe5 {[%clk 0:01:49]} 22. Bxe5 {[%clk 0:01:22]}  Qe7 {[%clk 0:01:49]} 23. Bd1 {[%clk 0:00:57]}  Nf6 {[%clk 0:01:40]} 24. Qg3 {[%clk 0:00:56]}  Ne4 {[%clk 0:01:37]} 25. Qh2 {[%clk 0:00:56]}  Nd2 {[%clk 0:01:34]} 26. Bd6 {[%clk 0:00:56]}  Qg5 {[%clk 0:01:28]} 27. f4 {[%clk 0:00:36]}  Qg6 {[%clk 0:01:26]} 28. Bxf8 {[%clk 0:00:34]}  Nxf1 {[%clk 0:01:22]} 29. Kxf1 {[%clk 0:00:28]}  Rxf8 {[%clk 0:01:20]} 30. Bf3 {[%clk 0:00:29]}  Bd3+ {[%clk 0:01:14]} 31. Kf2 {[%clk 0:00:27]}  Qf6 {[%clk 0:01:07]} 32. Re5 {[%clk 0:00:17]}  Bc4 {[%clk 0:01:04]} 33. Ke3 {[%clk 0:00:10]}  Bb3 {[%clk 0:00:59]} 34. Be2 {[%clk 0:00:07]}  Bxa4 {[%clk 0:00:57]} 35. Bd3+ {[%clk 0:00:06]}  Kh8 {[%clk 0:00:57]} 36. g4 {[%clk 0:00:05]}  Bb5 {[%clk 0:00:55]} 37. Bc2 {[%clk 0:00:05]}  c5 {[%clk 0:00:49]} 38. Qg3 {[%clk 0:00:05]}  Bd7 {[%clk 0:00:42]} 39. g5 {[%clk 0:00:05]}  hxg5 {[%clk 0:00:39]} 40. Rxg5 {[%clk 0:00:06]}  Kg8 {[%clk 0:00:35]} 41. Bg6 {[%clk 0:00:04]}  Be8 {[%clk 0:00:33]} 42. Bd3 {[%clk 0:00:04]}  Bf7 {[%clk 0:00:28]} 43. Qh4 {[%clk 0:00:04]}  g6 {[%clk 0:00:23]} 44. Qg4 {[%clk 0:00:03]}  Kg7 {[%clk 0:00:22]} 45. h4 {[%clk 0:00:03]}  cxd4+ {[%clk 0:00:18]} 46. cxd4 {[%clk 0:00:03]}  Kh6 {[%clk 0:00:18]} 47. h5 {[%clk 0:00:03]}  gxh5 {[%clk 0:00:16]} 48. Qg3 {[%clk 0:00:02]}  Rh8 {[%clk 0:00:13]} 49. Bc2 {[%clk 0:00:02]}  Rf8 {[%clk 0:00:11]} 50. Bd3 {[%clk 0:00:02]}  Rh8 {[%clk 0:00:11]} 51. Qh4 {[%clk 0:00:02]}  Qd8 {[%clk 0:00:07]} 52. Qg3 {[%clk 0:00:02]}  Qf6 {[%clk 0:00:07]} 1/2-1/2


[Site "https://www.chess.com"]

[Event "Titled Tuesday Blitz April 18 Late 2023"]
[White "Demchenko, Anton"]
[Black "Mendez Fortes, Eduardo Jesus"]
[WhiteFideId "4160258"]
[BlackFideId "3502376"]
[WhiteElo "2545"]
[BlackElo "2307"]
[Result "0-1"]
[Round "07"]
[TimeControl "180+2"]
[Date "2023.04.18"]
[WhiteClock "0:00:04"]
[BlackClock "0:00:09"]

1. e4 {[%clk 0:02:55]}  c5 {[%clk 0:02:59]} 2. Nc3 {[%clk 0:02:47]}  d6 {[%clk 0:02:59]} 3. f4 {[%clk 0:02:47]}  g6 {[%clk 0:02:58]} 4. Nf3 {[%clk 0:02:47]}  Bg7 {[%clk 0:02:58]} 5. Bc4 {[%clk 0:02:48]}  Nc6 {[%clk 0:02:54]} 6. d3 {[%clk 0:02:48]}  e6 {[%clk 0:02:53]} 7. a3 {[%clk 0:02:49]}  Nge7 {[%clk 0:02:52]} 8. Ba2 {[%clk 0:02:50]}  O-O {[%clk 0:02:52]} 9. h4 {[%clk 0:02:50]}  d5 {[%clk 0:02:48]} 10. h5 {[%clk 0:02:49]}  Nd4 {[%clk 0:02:31]} 11. hxg6 {[%clk 0:02:39]}  fxg6 {[%clk 0:02:12]} 12. Ng5 {[%clk 0:02:30]}  h6 {[%clk 0:02:05]} 13. Nh3 {[%clk 0:02:31]}  b5 {[%clk 0:01:53]} 14. Ne2 {[%clk 0:02:30]}  dxe4 {[%clk 0:01:47]} 15. dxe4 {[%clk 0:02:27]}  Nec6 {[%clk 0:01:42]} 16. Nxd4 {[%clk 0:02:11]}  Bxd4 {[%clk 0:01:28]} 17. Qg4 {[%clk 0:01:54]}  Kg7 {[%clk 0:01:22]} 18. c3 {[%clk 0:01:45]}  h5 {[%clk 0:01:09]} 19. Qg3 {[%clk 0:01:39]}  Bf6 {[%clk 0:01:08]} 20. Nf2 {[%clk 0:01:29]}  h4 {[%clk 0:01:02]} 21. Qf3 {[%clk 0:01:08]}  e5 {[%clk 0:00:55]} 22. Bd5 {[%clk 0:01:08]}  Bb7 {[%clk 0:00:51]} 23. Ng4 {[%clk 0:01:00]}  exf4 {[%clk 0:00:46]} 24. Bd2 {[%clk 0:00:17]}  Ne5 {[%clk 0:00:34]} 25. Nxe5 {[%clk 0:00:17]}  Bxd5 {[%clk 0:00:34]} 26. exd5 {[%clk 0:00:13]}  Bxe5 {[%clk 0:00:33]} 27. O-O-O {[%clk 0:00:14]}  b4 {[%clk 0:00:29]} 28. Rhe1 {[%clk 0:00:12]}  Qf6 {[%clk 0:00:21]} 29. cxb4 {[%clk 0:00:09]}  Bxb2+ {[%clk 0:00:20]} 30. Kb1 {[%clk 0:00:09]}  Rfe8 {[%clk 0:00:14]} 31. Re6 {[%clk 0:00:06]}  Rxe6 {[%clk 0:00:13]} 32. dxe6 {[%clk 0:00:07]}  Re8 {[%clk 0:00:10]} 33. Bxf4 {[%clk 0:00:05]}  cxb4 {[%clk 0:00:08]} 34. Rd7+ {[%clk 0:00:05]}  Kg8 {[%clk 0:00:08]} 35. axb4 {[%clk 0:00:03]}  Qxe6 {[%clk 0:00:05]} 36. Qd5 {[%clk 0:00:02]}  Qxd5 {[%clk 0:00:05]} 37. Rxd5 {[%clk 0:00:03]}  Bf6 {[%clk 0:00:05]} 38. Bg5 {[%clk 0:00:03]}  Bxg5 {[%clk 0:00:05]} 39. Rxg5 {[%clk 0:00:04]}  Kf7 {[%clk 0:00:05]} 40. Rg4 {[%clk 0:00:04]}  Rh8 {[%clk 0:00:06]} 41. Rc4 {[%clk 0:00:04]}  Kf6 {[%clk 0:00:05]} 42. Rc6+ {[%clk 0:00:02]}  Kg5 {[%clk 0:00:05]} 43. Ra6 {[%clk 0:00:02]}  Rb8 {[%clk 0:00:05]} 44. Ra4 {[%clk 0:00:01]}  Kg4 {[%clk 0:00:05]} 45. Kc2 {[%clk 0:00:01]}  Kg3 {[%clk 0:00:06]} 46. Ra6 {[%clk 0:00:01]}  g5 {[%clk 0:00:06]} 47. Kc3 {[%clk 0:00:01]}  g4 {[%clk 0:00:06]} 48. Rxa7 {[%clk 0:00:02]}  Kxg2 {[%clk 0:00:06]} 49. Rh7 {[%clk 0:00:02]}  h3 {[%clk 0:00:07]} 50. Kc4 {[%clk 0:00:02]}  h2 {[%clk 0:00:07]} 51. b5 {[%clk 0:00:03]}  h1=Q {[%clk 0:00:08]} 52. Rxh1 {[%clk 0:00:03]}  Kxh1 {[%clk 0:00:09]} 53. Kc5 {[%clk 0:00:04]}  g3 {[%clk 0:00:09]} 0-1


[Site "https://www.chess.com"]

[Event "Titled Tuesday Blitz April 18 Late 2023"]
[White "Leiva, Gianmarco"]
[Black "Pichot, Alan"]
[WhiteFideId "3804399"]
[BlackFideId "110973"]
[WhiteElo "2345"]
[BlackElo "2573"]
[Result "0-1"]
[Round "07"]
[TimeControl "180+2"]
[Date "2023.04.18"]
[WhiteClock "0:00:01"]
[BlackClock "0:00:08"]

1. e4 {[%clk 0:02:56]}  e5 {[%clk 0:02:59]} 2. Nf3 {[%clk 0:02:56]}  Nc6 {[%clk 0:02:59]} 3. Bc4 {[%clk 0:02:56]}  Bc5 {[%clk 0:02:58]} 4. d3 {[%clk 0:02:55]}  Nf6 {[%clk 0:02:58]} 5. O-O {[%clk 0:02:55]}  O-O {[%clk 0:02:57]} 6. a4 {[%clk 0:02:54]}  d6 {[%clk 0:02:57]} 7. c3 {[%clk 0:02:48]}  a6 {[%clk 0:02:57]} 8. h3 {[%clk 0:02:42]}  h6 {[%clk 0:02:57]} 9. Re1 {[%clk 0:02:41]}  Ba7 {[%clk 0:02:57]} 10. Nbd2 {[%clk 0:02:40]}  Be6 {[%clk 0:02:57]} 11. Bb3 {[%clk 0:02:36]}  Re8 {[%clk 0:02:43]} 12. Nf1 {[%clk 0:02:36]}  d5 {[%clk 0:02:42]} 13. exd5 {[%clk 0:02:20]}  Bxd5 {[%clk 0:02:41]} 14. Bc2 {[%clk 0:02:12]}  Qd7 {[%clk 0:02:18]} 15. Be3 {[%clk 0:02:06]}  Bxe3 {[%clk 0:02:09]} 16. Rxe3 {[%clk 0:02:04]}  Rad8 {[%clk 0:02:06]} 17. Ng3 {[%clk 0:02:02]}  Re7 {[%clk 0:01:55]} 18. Qe2 {[%clk 0:01:55]}  Rde8 {[%clk 0:01:55]} 19. a5 {[%clk 0:01:50]}  Bxf3 {[%clk 0:01:09]} 20. Qxf3 {[%clk 0:01:50]}  Nd5 {[%clk 0:01:08]} 21. Ree1 {[%clk 0:01:51]}  Nf4 {[%clk 0:00:49]} 22. d4 {[%clk 0:01:49]}  Nd5 {[%clk 0:00:23]} 23. Nf5 {[%clk 0:01:43]}  Re6 {[%clk 0:00:23]} 24. Bb3 {[%clk 0:01:29]}  exd4 {[%clk 0:00:22]} 25. Red1 {[%clk 0:01:05]}  Rf6 {[%clk 0:00:22]} 26. Nxh6+ {[%clk 0:00:24]}  gxh6 {[%clk 0:00:21]} 27. Qxd5 {[%clk 0:00:22]}  Qxd5 {[%clk 0:00:22]} 28. Bxd5 {[%clk 0:00:23]}  Re2 {[%clk 0:00:18]} 29. Bf3 {[%clk 0:00:19]}  Rxb2 {[%clk 0:00:18]} 30. cxd4 {[%clk 0:00:19]}  Rd6 {[%clk 0:00:18]} 31. Ra4 {[%clk 0:00:16]}  Ne7 {[%clk 0:00:15]} 32. Rc4 {[%clk 0:00:16]}  c6 {[%clk 0:00:16]} 33. Rc5 {[%clk 0:00:16]}  Rb5 {[%clk 0:00:15]} 34. Rxb5 {[%clk 0:00:15]}  axb5 {[%clk 0:00:16]} 35. Re1 {[%clk 0:00:15]}  Kf8 {[%clk 0:00:15]} 36. Re4 {[%clk 0:00:10]}  Nf5 {[%clk 0:00:15]} 37. Rf4 {[%clk 0:00:02]}  Nxd4 {[%clk 0:00:15]} 38. Bh5 {[%clk 0:00:03]}  f6 {[%clk 0:00:14]} 39. Re4 {[%clk 0:00:02]}  Rd8 {[%clk 0:00:08]} 40. Re3 {[%clk 0:00:01]}  b4 {[%clk 0:00:08]} 41. Bd1 {[%clk 0:00:01]}  c5 {[%clk 0:00:08]} 42. Bb3 {[%clk 0:00:01]}  Nxb3 {[%clk 0:00:07]} 43. Rxb3 {[%clk 0:00:02]}  Ra8 {[%clk 0:00:08]} 44. Rf3 {[%clk 0:00:02]}  Kf7 {[%clk 0:00:07]} 45. Rd3 {[%clk 0:00:02]}  Ke6 {[%clk 0:00:06]} 46. Re3+ {[%clk 0:00:02]}  Kd5 {[%clk 0:00:06]} 47. Re7 {[%clk 0:00:02]}  Rxa5 {[%clk 0:00:06]} 48. Rxb7 {[%clk 0:00:02]}  Kc4 {[%clk 0:00:07]} 49. g4 {[%clk 0:00:02]}  b3 {[%clk 0:00:07]} 50. Rb6 {[%clk 0:00:01]}  Rb5 {[%clk 0:00:08]} 0-1


[Site "https://www.chess.com"]

[Event "Titled Tuesday Blitz April 18 Late 2023"]
[White "Anton Guijarro, David"]
[Black "Klenburg, Michael"]
[WhiteFideId "2285525"]
[BlackFideId "14102072"]
[WhiteElo "2618"]
[BlackElo "2396"]
[Result "1-0"]
[Round "07"]
[TimeControl "180+2"]
[Date "2023.04.18"]
[WhiteClock "0:00:17"]
[BlackClock "0:00:12"]

1. d4 {[%clk 0:03:00]}  d6 {[%clk 0:02:57]} 2. Nf3 {[%clk 0:03:01]}  Nf6 {[%clk 0:02:56]} 3. Nbd2 {[%clk 0:02:59]}  Nbd7 {[%clk 0:02:54]} 4. e4 {[%clk 0:02:59]}  e5 {[%clk 0:02:54]} 5. c3 {[%clk 0:02:59]}  Be7 {[%clk 0:02:50]} 6. Bd3 {[%clk 0:02:59]}  c6 {[%clk 0:02:50]} 7. O-O {[%clk 0:03:00]}  O-O {[%clk 0:02:49]} 8. Re1 {[%clk 0:03:00]}  Qc7 {[%clk 0:02:50]} 9. Nf1 {[%clk 0:02:58]}  Re8 {[%clk 0:02:48]} 10. Ng3 {[%clk 0:02:58]}  Bf8 {[%clk 0:02:48]} 11. h3 {[%clk 0:02:52]}  g6 {[%clk 0:02:45]} 12. Bg5 {[%clk 0:02:50]}  Bg7 {[%clk 0:02:44]} 13. Qd2 {[%clk 0:02:50]}  Nf8 {[%clk 0:02:38]} 14. Bh6 {[%clk 0:02:08]}  Ne6 {[%clk 0:02:30]} 15. a4 {[%clk 0:02:08]}  Kh8 {[%clk 0:01:46]} 16. Rad1 {[%clk 0:01:59]}  Ng8 {[%clk 0:01:46]} 17. Bxg7+ {[%clk 0:01:55]}  Kxg7 {[%clk 0:01:45]} 18. Bc4 {[%clk 0:01:50]}  f6 {[%clk 0:01:41]} 19. Nh2 {[%clk 0:01:19]}  Nf4 {[%clk 0:01:37]} 20. Ne2 {[%clk 0:01:18]}  Nxe2+ {[%clk 0:01:30]} 21. Rxe2 {[%clk 0:01:15]}  Nh6 {[%clk 0:01:17]} 22. dxe5 {[%clk 0:00:52]}  dxe5 {[%clk 0:01:16]} 23. Re3 {[%clk 0:00:52]}  Nf7 {[%clk 0:00:58]} 24. Rd3 {[%clk 0:00:51]}  Re7 {[%clk 0:00:48]} 25. h4 {[%clk 0:00:28]}  a6 {[%clk 0:00:38]} 26. h5 {[%clk 0:00:26]}  b5 {[%clk 0:00:34]} 27. Bxf7 {[%clk 0:00:26]}  Rxf7 {[%clk 0:00:33]} 28. h6+ {[%clk 0:00:23]}  Kf8 {[%clk 0:00:31]} 29. Rd8+ {[%clk 0:00:23]}  Ke7 {[%clk 0:00:31]} 30. Rg8 {[%clk 0:00:19]}  Bb7 {[%clk 0:00:26]} 31. Rxa8 {[%clk 0:00:19]}  Bxa8 {[%clk 0:00:25]} 32. Ng4 {[%clk 0:00:19]}  Bb7 {[%clk 0:00:21]} 33. Qe3 {[%clk 0:00:18]}  c5 {[%clk 0:00:18]} 34. axb5 {[%clk 0:00:18]}  axb5 {[%clk 0:00:18]} 35. Qe2 {[%clk 0:00:17]}  Bc6 {[%clk 0:00:16]} 36. Ne3 {[%clk 0:00:17]}  Kf8 {[%clk 0:00:15]} 37. Nd5 {[%clk 0:00:16]}  Bxd5 {[%clk 0:00:15]} 38. Rxd5 {[%clk 0:00:17]}  c4 {[%clk 0:00:15]} 39. Qd2 {[%clk 0:00:17]}  Re7 {[%clk 0:00:14]} 40. Rd8+ {[%clk 0:00:17]}  Kf7 {[%clk 0:00:12]} 41. Qd5+ {[%clk 0:00:16]}  Re6 {[%clk 0:00:12]} 42. Rd7+ {[%clk 0:00:17]} 1-0


[Site "https://www.chess.com"]

[Event "Titled Tuesday Blitz April 18 Late 2023"]
[White "Svane, Frederik"]
[Black "Martinez Ramirez, Lennis"]
[WhiteFideId "12923044"]
[BlackFideId "3509079"]
[WhiteElo "2502"]
[BlackElo "2410"]
[Result "1-0"]
[Round "07"]
[TimeControl "180+2"]
[Date "2023.04.18"]
[WhiteClock "0:00:37"]
[BlackClock "0:00:02"]

1. e3 {[%clk 0:02:57]}  e5 {[%clk 0:02:59]} 2. Qe2 {[%clk 0:02:57]}  Nc6 {[%clk 0:02:58]} 3. Kd1 {[%clk 0:02:58]}  Nf6 {[%clk 0:02:59]} 4. Qe1 {[%clk 0:02:59]}  d5 {[%clk 0:02:59]} 5. d3 {[%clk 0:02:58]}  Bd6 {[%clk 0:02:56]} 6. Nd2 {[%clk 0:02:58]}  a5 {[%clk 0:02:51]} 7. Ne2 {[%clk 0:02:58]}  a4 {[%clk 0:02:52]} 8. a3 {[%clk 0:02:57]}  O-O {[%clk 0:02:51]} 9. h3 {[%clk 0:02:57]}  b5 {[%clk 0:02:50]} 10. g4 {[%clk 0:02:50]}  b4 {[%clk 0:02:49]} 11. axb4 {[%clk 0:02:50]}  Nxb4 {[%clk 0:02:48]} 12. Bg2 {[%clk 0:02:50]}  c6 {[%clk 0:02:46]} 13. g5 {[%clk 0:02:43]}  Nd7 {[%clk 0:02:42]} 14. h4 {[%clk 0:02:38]}  f5 {[%clk 0:02:39]} 15. Nc3 {[%clk 0:02:30]}  Nb6 {[%clk 0:02:38]} 16. Bf1 {[%clk 0:02:02]}  c5 {[%clk 0:02:34]} 17. Rg1 {[%clk 0:02:00]}  d4 {[%clk 0:02:33]} 18. Nb5 {[%clk 0:02:01]}  Bb8 {[%clk 0:02:25]} 19. Bg2 {[%clk 0:02:01]}  Ra5 {[%clk 0:02:24]} 20. Na3 {[%clk 0:02:01]}  Be6 {[%clk 0:02:23]} 21. f4 {[%clk 0:01:55]}  Bf7 {[%clk 0:01:57]} 22. fxe5 {[%clk 0:01:44]}  Bxe5 {[%clk 0:01:53]} 23. e4 {[%clk 0:01:44]}  f4 {[%clk 0:01:43]} 24. Bf3 {[%clk 0:01:40]}  Qd6 {[%clk 0:01:32]} 25. Be2 {[%clk 0:01:36]}  Rd8 {[%clk 0:01:28]} 26. Nf3 {[%clk 0:01:34]}  c4 {[%clk 0:01:25]} 27. Bd2 {[%clk 0:01:29]}  c3 {[%clk 0:01:03]} 28. bxc3 {[%clk 0:01:27]}  dxc3 {[%clk 0:01:03]} 29. Bxc3 {[%clk 0:01:28]}  Bxc3 {[%clk 0:01:02]} 30. Qxc3 {[%clk 0:01:29]}  Rc8 {[%clk 0:00:56]} 31. Qd4 {[%clk 0:01:27]}  N4d5 {[%clk 0:00:13]} 32. exd5 {[%clk 0:01:27]}  Rxd5 {[%clk 0:00:13]} 33. Qf2 {[%clk 0:01:20]}  Bg6 {[%clk 0:00:12]} 34. Nd2 {[%clk 0:01:17]}  Rdc5 {[%clk 0:00:08]} 35. Rf1 {[%clk 0:01:16]}  Qe5 {[%clk 0:00:06]} 36. d4 {[%clk 0:00:57]}  Qc7 {[%clk 0:00:02]} 37. dxc5 {[%clk 0:00:57]}  Nd5 {[%clk 0:00:03]} 38. Bc4 {[%clk 0:00:54]}  Bf7 {[%clk 0:00:02]} 39. Bxd5 {[%clk 0:00:54]}  Bxd5 {[%clk 0:00:03]} 40. Qxf4 {[%clk 0:00:53]}  Qxc5 {[%clk 0:00:03]} 41. Re1 {[%clk 0:00:41]}  Qc3 {[%clk 0:00:03]} 42. Qe5 {[%clk 0:00:40]}  Bf3+ {[%clk 0:00:02]} 43. Kc1 {[%clk 0:00:37]} 1-0


[Site "https://www.chess.com"]

[Event "Titled Tuesday Blitz April 18 Late 2023"]
[White "Ibrahimli, Murad"]
[Black "Feng, Eric"]
[WhiteFideId "13410229"]
[BlackFideId "30952590"]
[WhiteElo "2364"]
[BlackElo "1785"]
[Result "1-0"]
[Round "07"]
[TimeControl "180+2"]
[Date "2023.04.18"]
[WhiteClock "0:01:49"]
[BlackClock "0:01:32"]

1. e4 {[%clk 0:03:00]}  c6 {[%clk 0:02:54]} 2. Nf3 {[%clk 0:03:00]}  d5 {[%clk 0:02:54]} 3. e5 {[%clk 0:03:00]}  Bf5 {[%clk 0:02:54]} 4. c4 {[%clk 0:03:00]}  e6 {[%clk 0:02:54]} 5. Be2 {[%clk 0:02:58]}  Nd7 {[%clk 0:02:50]} 6. O-O {[%clk 0:02:58]}  Ne7 {[%clk 0:02:50]} 7. b3 {[%clk 0:02:53]}  Bg6 {[%clk 0:02:50]} 8. Bb2 {[%clk 0:02:52]}  h5 {[%clk 0:02:50]} 9. d4 {[%clk 0:02:51]}  Nf5 {[%clk 0:02:50]} 10. Nc3 {[%clk 0:02:51]}  Be7 {[%clk 0:02:50]} 11. Bd3 {[%clk 0:02:47]}  Bh7 {[%clk 0:02:49]} 12. cxd5 {[%clk 0:02:39]}  cxd5 {[%clk 0:02:48]} 13. Qb1 {[%clk 0:02:40]}  Nb8 {[%clk 0:02:18]} 14. Ne2 {[%clk 0:02:37]}  g5 {[%clk 0:02:18]} 15. Ng3 {[%clk 0:02:36]}  Nxg3 {[%clk 0:02:14]} 16. fxg3 {[%clk 0:02:27]}  Bxd3 {[%clk 0:01:53]} 17. Qxd3 {[%clk 0:02:28]}  O-O {[%clk 0:01:53]} 18. Bc1 {[%clk 0:02:15]}  g4 {[%clk 0:01:53]} 19. Nh4 {[%clk 0:02:12]}  Bg5 {[%clk 0:01:49]} 20. Ng6 {[%clk 0:01:53]}  Re8 {[%clk 0:01:48]} 21. Nf4 {[%clk 0:01:53]}  Nc6 {[%clk 0:01:38]} 22. Nxh5 {[%clk 0:01:51]}  Rf8 {[%clk 0:01:30]} 23. Bxg5 {[%clk 0:01:48]}  Qxg5 {[%clk 0:01:31]} 24. Nf6+ {[%clk 0:01:49]}  Kg7 {[%clk 0:01:32]} 25. Qh7# {[%clk 0:01:49]} 1-0


[Site "https://www.chess.com"]